Cogmind - Beta 15 @@@ ROGUE MODE // 2025.06.26 @ 10:43:07 Player: Annull999 Result: Destroyed by H-61 Shepherd with Heavy Assault Cannon Performance ------------- Evolutions (3) 1500 Regions Visited (4) 800 Robots Destroyed (10) 50 Value Destroyed (220) 220 Prototype IDs (2) 40 Alien Tech Used (0) 0 Bonus (0) 0 TOTAL SCORE: 2610 Bonus ------- None Cogmind --------- Core Integrity 0/700 Matter 126/300 Energy 99/100 System Corruption 0% Temperature Cool (9) Movement Core (50) Location -7/Factory Parts ------- > --- POWER (2) -------- (None) > --- PROPULSION (4) --- Improved Cesium-ion Thruster > --- UTILITY (4) ------ Visual Processing Unit ECM Suite > --- WEAPON (3) ------- (None) > --- INVENTORY (5) ---- VSS Leg Improved Titanium Leg Peak State ------------ > --- POWER ------------ Light Nuclear Core Light Nuclear Core > --- PROPULSION ------- Flight Unit Flight Unit Flight Unit > --- UTILITY ---------- Weight Redist. System Improved Signal Interpreter ECM Suite > --- WEAPON ----------- Shock Rifle Grenade Launcher > --- INVENTORY -------- Light Ion Engine [Rating: 19] Favorites ----------- Power Light Ion Engine Engine Light Ion Engine Power Core Light Nuclear Core Propulsion Flight Unit Leg Aluminum Leg Flight Unit Flight Unit Utility ECM Suite Device ECM Suite Storage Small Storage Unit Processor Visual Processing Unit Weapon Grenade Launcher Energy Gun Small Laser Ballistic Gun Assault Rifle Launcher Grenade Launcher Special Melee Weapon Datajack Build | -11 -10 -9 -8 -7 ------- Run | Yrd Mat Mat Mat Fac Slots Evolved 6 | . . 2 2 2 Power 1 | . . 1 . . Propulsion 2 | . . 1 1 . Utility 2 | . . . 1 1 Weapon 1 | . . . . 1 Parts Attached 28 | . 6 5 6 11 Power 5 | . 1 1 2 1 Engine 2 | . 1 1 . . Core 3 | . . . 2 1 Reactor . | . . . . . Propulsion 12 | . 3 3 1 5 Treads . | . . . . . Leg . | . . . . . Wheel . | . . . . . Hover . | . . . . . Flight 12 | . 3 3 1 5 Utility 6 | . 1 . 2 3 Device 4 | . 1 . 1 2 Storage . | . . . . . Processor 2 | . . . 1 1 Hackware . | . . . . . Protection . | . . . . . Artifact . | . . . . . Weapon 5 | . 1 1 1 2 Energy Gun 2 | . . . 1 1 Energy Cannon . | . . . . . Ballistic Gun 1 | . . 1 . . Ballistic Cannon . | . . . . . Launcher 1 | . 1 . . . Special Weapon . | . . . . . Impact Weapon . | . . . . . Slashing Weapon . | . . . . . Piercing Weapon . | . . . . . Special Melee Weapon 1 | . . . . 1 Unidentified Prototypes 2 | . . . . 2 Parts Lost 28 | . 5 4 8 11 Power 6 | . 1 1 1 3 Propulsion 13 | . 3 2 4 4 Utility 3 | . . . 1 2 Weapon 6 | . 1 1 2 2 Highest Loss Streak 6 | . 5 4 2 6 To Critical Strikes . | . . . . . Average Backups 2 | . 5 . 2 1 Power . | . . . 1 . Propulsion 1 | . 3 . . 1 Utility . | . . . . . Weapon . | . 1 . . . Tool/Special . | . . . . . Unused Backups 4 | . 2 . . 2 Power . | . . . . . Propulsion 2 | . . . . 2 Utility . | . . . . . Weapon 2 | . 2 . . . Tool/Special . | . . . . . Average Slot Usage (%) 52 | . 74 77 51 34 Engine 7 | . 12 21 2 2 Core 2 | . . . 4 2 Leg 3 | . 19 . . . Flight 13 | . 7 32 13 9 Device 9 | . 1 11 14 8 Storage 1 | . 9 . . . Processor 4 | . . . 6 6 Energy Gun 4 | . 12 . 3 2 Ballistic Gun 1 | . 9 2 . . Launcher 3 | . 2 11 6 . Peak Build Rating 19 | . 6 8 19 18 Average Rating 9 | . 5 7 9 11 On Entrance 5 | 6 6 5 6 5 Naked Turns . | . . . . . Heaviest Build 18 | 13 13 12 18 14 Greatest Support 20 | 20 20 12 18 11 Greatest Overweight (x) 4 | . 4 . 1 1 Average Overweight (x) . | . . . . . Largest Inventory Capacity 8 | . 8 5 5 5 Average Capacity 5 | . 7 5 5 5 Most Carried 8 | . 8 3 4 4 Average Carried 2 | . 5 . 2 1 Final Capacity 8 | 8 5 5 5 5 Final Carried 6 | 6 2 . 4 2 Class Distribution -------------------- 74% | Mutant 21% | Scavenger-Mutant 4% | Sprinter Dominant Class ---------------- Mutant | -10/Materials Scavenger-Mutant | -9/Materials Mutant | -8/Materials Mutant | -7/Factory Resources | -11 -10 -9 -8 -7 ----------- Run | Yrd Mat Mat Mat Fac Matter Collected 316 | 171 70 . 24 51 Remotely . | . . . . . Salvage Created 172 | . 16 26 72 58 Parts 17 | . 2 10 3 2 Haulers Intercepted . | . . . . . Recyclers Shooed . | . . . . . Parts Field Recycled . | . . . . . Retrieved Matter . | . . . . . Parts Self-Destructed . | . . . . . Prevented . | . . . . . Kills | -11 -10 -9 -8 -7 ------- Run | Yrd Mat Mat Mat Fac Combat Hostiles Destroyed 8 | . 1 4 1 2 Guns 3 | . 1 . . 2 AOE 5 | . . 4 1 . Classes Destroyed 4 | . 1 . 3 . Operator 1 | . . . 1 . Watcher 1 | . . . 1 . Swarmer 7 | . 1 4 . 2 Sentry 1 | . . . 1 . Best Kill Streak 4 | . 1 4 2 2 Combat Bots Only 4 | . 1 4 1 2 Max Kills in Single Turn 3 | . 1 3 1 1 Gunslinging . | . . . . . Exploded 3 | . . 3 1 . Melee . | . . . . . Uniques/NPCs Destroyed . | . . . . . Combat | -11 -10 -9 -8 -7 -------- Run | Yrd Mat Mat Mat Fac Hostile Shots Fired 467 | . 106 29 119 213 Missed 221 | . 39 16 48 118 Hits 246 | . 67 13 71 95 Projectile 246 | . 67 13 71 95 AOE 3 | . . . . 3 Critical Strikes 1 | . . . . 1 Damage Taken 2838 | . 685 170 807 1176 Core 1490 | . 227 39 504 720 Absorbed by Shields 58 | . . . . 58 Core Remaining (%) 51 | 100 9 90 8 . Volleys Fired 28 | . 3 2 11 12 Largest 2 | . 2 1 2 1 Hottest 80 | . 60 30 80 20 Shots Fired 39 | . 5 2 20 12 Gun 27 | . 5 . 10 12 Cannon . | . . . . . Launcher 12 | . . 2 10 . Special . | . . . . . Kinetic 2 | . 2 . . . Thermal 15 | . 3 . . 12 Explosive 12 | . . 2 10 . Electromagnetic 10 | . . . 10 . Robot Hit Streak 11 | . 1 3 11 1 Robot Miss Streak 3 | . 1 . 2 3 Penetration Max . | . . . . . Secondary Targets 1 | . 1 . . . Max Gunslinging Chain 1 | . 1 . . . Shots Hit Robots 26 | . 3 2 15 6 Core Hits 19 | . 2 4 11 2 Critical Kills . | . . . . . Critical Parts Destroyed . | . . . . . Critical Strikes . | . . . . . Melee Attacks 3 | . . . . 3 Impact . | . . . . . Slashing . | . . . . . Piercing . | . . . . . Sneak Attacks . | . . . . . Combat Hostiles . | . . . . . Follow-up Attacks . | . . . . . Damage Inflicted 819 | . 30 158 568 63 Guns 241 | . 30 . 154 57 Cannons . | . . . . . Explosions 556 | . . 158 398 . Melee . | . . . . . Ramming 22 | . . . 16 6 Kinetic . | . . . . . Thermal 87 | . 30 . . 57 Explosive 556 | . . 158 398 . Electromagnetic 154 | . . . 154 . Impact . | . . . . . Slashing . | . . . . . Piercing . | . . . . . Highest Corruption 2 | . . . 2 . Average Corruption 2 | . . . 2 . Corruption Purged . | . . . . . Corruption Blocked . | . . . . . Effects 2 | . . . 2 . Message Errors 2 | . . . 2 . Overload Shots . | . . . . . Overflow Damage 22 | . . . 22 . Projectiles . | . . . . . Explosions 22 | . . . 22 . Melee . | . . . . . Knockbacks . | . . . . . Impact . | . . . . . Kinetic . | . . . . . Secondary . | . . . . . Self-Inflicted Damage 69 | . . . 66 3 Shots 3 | . . . 3 . Rammed 7 | . . . 6 1 Targets Rammed 7 | . . . 6 1 Kicked . | . . . . . Crushed . | . . . . . Highest Temperature 179 | . 6 3 179 3 Average Temperature 52 | . 3 3 63 3 Received Heat Transfer 517 | . 174 42 162 139 Siege Activations . | . . . . . Martial Activations . | . . . . . Shielding Activations . | . . . . . Robots Disrupted . | . . . . . Combat Hostiles . | . . . . . Robots Corrupted . | . . . . . Combat Hostiles . | . . . . . Parts Fried . | . . . . . Impact Corruptions . | . . . . . Robots Melted . | . . . . . Combat Hostiles . | . . . . . Parts Melted 1 | . . . . 1 Heat Transferred 186 | . 75 . . 111 Parts Sabotaged . | . . . . . Parts Stolen . | . . . . . Parts Stripped . | . . . . . Power Chain Reactions . | . . . . . Alert | -11 -10 -9 -8 -7 ------- Run | Yrd Mat Mat Mat Fac Maximum Alert Level . | . . . . . Low Security (%) 100 | . 100 100 100 100 Level 1 . | . . . . . Level 2 . | . . . . . Level 3 . | . . . . . Level 4 . | . . . . . Level 5 . | . . . . . High Security . | . . . . . Max Security . | . . . . . Peak Influence 176 | . 10 176 91 52 Initial 61 | . . . 61 20 Average 29 | . . 69 56 8 Influence Increases 691 | . 29 234 234 194 Destroy 0b10 Robot/C 160 | . 20 80 20 40 Destroy 0b10 Robot/NC 10 | . . . 10 . Destroy Leader 22 | . . 10 12 . Successful Hack 116 | . 9 56 32 19 Disable Machine 45 | . . 30 . 15 Destroy Structure 113 | . . 43 70 . Partial Spotted 60 | . . 15 15 30 Lose Combat Pursuer 165 | . . . 75 90 Influence Decreases 657 | . 29 88 335 205 Entered New Map 110 | . . . 85 25 Time Decay 367 | . 19 48 170 130 Lost Part 180 | . 10 40 80 50 Squads Dispatched 9 | . . 2 2 5 Investigation 5 | . . 1 2 2 Extermination 1 | . . . . 1 Reinforcement 3 | . . 1 . 2 Assault . | . . . . . Garrison . | . . . . . Intercept . | . . . . . Searches Triggered . | . . . . . Construction Impeded . | . . . . . Haulers Reinforced . | . . . . . Active Scanning Responses . | . . . . . Cargo Convoy Interrupts . | . . . . . Stealth | -11 -10 -9 -8 -7 --------- Run | Yrd Mat Mat Mat Fac Distress Signals 9 | . 3 2 3 1 Communications Jammed . | . . . . . Distress Signals . | . . . . . Times Spotted 84 | . 10 13 39 22 Peak Tracking Total 10 | . 8 4 10 6 Tactical Retreats 18 | . 1 2 9 6 Traps | -11 -10 -9 -8 -7 ------- Run | Yrd Mat Mat Mat Fac Traps Triggered 1 | . 1 . . . Indirectly . | . . . . . Trap Hack Attempts . | . . . . . Triggered . | . . . . . Disarmed . | . . . . . Reprogrammed . | . . . . . Reused . | . . . . . Traps Extracted . | . . . . . Installed . | . . . . . Triggered . | . . . . . Machines | -11 -10 -9 -8 -7 ---------- Run | Yrd Mat Mat Mat Fac Machines Disabled 3 | . . 2 . 1 Max in Single Turn 2 | . . 2 . 1 Machines Repaired . | . . . . . Machines Dismantled . | . . . . . Machines Sabotaged . | . . . . . Overloaded Fab Kills . | . . . . . Hacking | -11 -10 -9 -8 -7 --------- Run | Yrd Mat Mat Mat Fac Machines Accessed 14 | . 1 5 5 3 Terminals 14 | . 1 5 5 3 Fabricators . | . . . . . Repair Stations . | . . . . . Recycling Units . | . . . . . Scanalyzers . | . . . . . Garrison Access . | . . . . . Total Hacks 42 | . 3 19 13 7 Successful 16 | . 1 7 6 2 Failed 26 | . 2 12 7 5 Catastrophic 9 | . 1 3 2 3 Database Lockouts . | . . . . . Manual 37 | . 3 15 13 6 Terminals 42 | . 3 19 13 7 Fabricators . | . . . . . Repair Stations . | . . . . . Recycling Units . | . . . . . Scanalyzers . | . . . . . Garrison Access . | . . . . . Terminal Hacks 6 | . 1 2 2 1 Open DSF 1 | . . . . 1 Level Access Points 2 | . 1 . 1 . Terminal Index 2 | . . 1 1 . Recall Reinforcements 1 | . . 1 . . Fabricator Hacks . | . . . . . Repair Station Hacks . | . . . . . Recycling Unit Hacks . | . . . . . Scanalyzer . | . . . . . Garrison Access Hacks . | . . . . . Unauthorized Hacks 10 | . . 5 4 1 Terminals 10 | . . 5 4 1 Assimilate 1 | . . . 1 . Botnet 9 | . . 5 3 1 Fabricators . | . . . . . Repair Stations . | . . . . . Recycling Units . | . . . . . Scanalyzers . | . . . . . Garrison Access . | . . . . . Data Cores Recovered . | . . . . . Used . | . . . . . Hacking Detections 13 | . 1 5 4 3 Full Trace Events 9 | . . 4 3 2 Feedback Events . | . . . . . Feedback Blocked . | . . . . . Robot Schematics Acquired . | . . . . . Robots Built . | . . . . . Authchips . | . . . . . Time . | . . . . . Total Robot Build Rating . | . . . . . Part Schematics Acquired . | . . . . . Parts Built . | . . . . . Authchips . | . . . . . Time . | . . . . . Total Part Build Rating . | . . . . . Parts Repaired . | . . . . . Time . | . . . . . Parts Recycled . | . . . . . Recycled Matter . | . . . . . Retrieved Matter . | . . . . . Retrieved Components . | . . . . . Parts Scanalyzed . | . . . . . Part Schematics Acquired . | . . . . . Parts Damaged . | . . . . . Bothacking | -11 -10 -9 -8 -7 ------------ Run | Yrd Mat Mat Mat Fac Used RIF Installer . | . . . . . Robots Hacked 1 | . . . . 1 Non-combat . | . . . . . Combat 1 | . . . . 1 Robot Hacks Applied 1 | . . . . 1 parse_system 1 | . . . . 1 Relay Couplers Released . | . . . . . Fabnet Peak Effective % . | . . . . . Robots Rewired . | . . . . . Allies Hacked . | . . . . . Hacks Repelled . | . . . . . Allies | -11 -10 -9 -8 -7 -------- Run | Yrd Mat Mat Mat Fac Total Allies . | . . . . . Largest Group . | . . . . . Highest-Rated Group . | . . . . . Highest-Rated Ally . | . . . . . Total Orders . | . . . . . Ally Attacks . | . . . . . Total Damage . | . . . . . Kills . | . . . . . Allies Corrupted . | . . . . . Allies Melted . | . . . . . Intel | -11 -10 -9 -8 -7 ------- Run | Yrd Mat Mat Mat Fac Active Infowar (turns) 861 | . 24 151 257 429 Optics 429 | . . . . 429 ECM 526 | . 24 151 257 94 Robot Analysis Total . | . . . . . Derelict Logs Recovered . | . . . . . Drone Launches . | . . . . . Drone Recoveries . | . . . . . Exploration | -11 -10 -9 -8 -7 ------------- Run | Yrd Mat Mat Mat Fac Turns Passed 1128 | . 204 151 340 433 Spaces Moved 2039 | 1 190 379 581 888 Core 356 | . 46 . 132 178 Treads . | . . . . . Legs 9 | 1 8 . . . Wheels . | . . . . . Hover . | . . . . . Flight 1674 | . 136 379 449 710 Fastest Speed 32 | 120 37 34 34 32 Average Speed 43 | 120 93 34 41 38 Slowest Speed 250 | 120 250 34 100 115 Overloaded Moves . | . . . . . Propulsion Burnouts . | . . . . . Robots Hopped 16 | . . 5 6 5 Potential Cave-ins . | . . . . . Cave-ins Triggered . | . . . . . Exploration Rate (%) 34 | 2 40 49 51 28 Regions Visited 4 Branch Regions . Pre-discovered Areas . | . . . . . Known Exits Taken 2 | . 1 . 1 . Unknown Exits Taken 2 | 1 . 1 . . Scrap Searched . | . . . . . Spaces Dug . | . . . . . Terrain Destroyed 116 | . . 51 65 . Melee . | . . . . . Projectile . | . . . . . AOE 116 | . . 51 65 . Terrain Rammed . | . . . . . Walls Destroyed . | . . . . . Machines Disabled . | . . . . . Actions | -11 -10 -9 -8 -7 --------- Run | Yrd Mat Mat Mat Fac Total 2225 | . 214 393 654 964 Wait 93 | . 1 10 46 36 Move 2003 | . 189 368 568 878 Hop 16 | . . 5 6 5 Pick Up 30 | . 8 3 8 11 Fast Attach . | . . . . . Attach 32 | . 6 5 6 15 Detach 5 | . 1 . 2 2 Swap 1 | . . . 1 . Drop 7 | . 6 . . 1 Fire 28 | . 3 2 11 12 Melee 3 | . . . . 3 Ram 7 | . . . 6 1 Kick . | . . . . . Crush . | . . . . . Escape Stasis . | . . . . . Rewire . | . . . . . Trap . | . . . . . Miscellaneous . | . . . . . Route ------- -11/Scrapyard -10/Materials (discovered 4 exits: *Mat x3 / [*Min]) -9/Materials (discovered 2 exits: *Mat x2) -8/Materials (discovered 3 exits: *Fac x3) -7/Factory (discovered 1 exit: [*Fac]) History --------- Turn | Location | Event 1 | -11/Scrapyard | Discovered new exit (range 0) 1 | -11/Scrapyard | Entered Materials 135 | -10/Materials | Core integrity fell below 50% 147 | -10/Materials | Core integrity fell below 20% 158 | -10/Materials | Identified exit to Materials 176 | -10/Materials | Lost 5 parts (1p3n1w) 187 | -10/Materials | Discovered new exit (range 13) 205 | -10/Materials | Entered another Materials area 205 | -9/Materials | Evolved 2 slots: Power x1, Propulsion x1 313 | -9/Materials | Discovered new exit (range 3) 351 | -9/Materials | Discovered new exit (range 6) 356 | -9/Materials | Entered another Materials area 356 | -8/Materials | Evolved 2 slots: Propulsion x1, Utility x1 371 | -8/Materials | Lost 4 parts (1p2n1w) 621 | -8/Materials | Identified exit to Factory 656 | -8/Materials | Core integrity fell below 50% 687 | -8/Materials | Core integrity fell below 20% 696 | -8/Materials | Entered Factory 696 | -7/Factory | Evolved 2 slots: Utility x1, Weapon x1 728 | -7/Factory | Identified exit to DSF 758 | -7/Factory | Build established: Mutant 925 | -7/Factory | Lost 6 parts (2p2n2u) 980 | -7/Factory | Core integrity fell below 50% 1121 | -7/Factory | Discovered new exit (range 11) 1123 | -7/Factory | Core integrity fell below 20% 1129 | -7/Factory | Destroyed by H-61 Shepherd with Heavy Assault Cannon Last Messages --------------- 01063_ ALERT: Suspicious activity at Terminal F004. Dispatching Investigation squad. 01085_ VTOL Module destroyed. 01097_ ALERT: Suspicious intruders detected, dispatching Cutter reinforcements to area. 01099_ Acquired Datajack. 01107_ Jacked G-47 Trooper... >>parse_system Reading system data... 01109_ Jacked G-47 Trooper... 01113_ Slammed into G-47 Trooper. 01121_ U-05 Engineer works on Matter Pump. 01121_ EXIT=FOUND 01122_ Datajack destroyed. 01122_ Knocked back. 01125_ C-17 Slicer knocked back. 01125_ T-07 Excavator destroyed. 01127_ Slug penetrates Wall. 01127_ Assembly Bed disabled. 01128_ U-05 Engineer lays Concrete. Map ----- +----------------------------------------------------+ | ??????????????????????????????????????????# | | ??????????????????????????????????????????# | | ??????????????????????????????????????????# | | ??????????????????????????????????????????# | | ??????????????????????????????????????????? | | ??????????????????????????????????????????? | | ??????????????????????????????????????????? | | ??????????????????????????????????????????? | | ???????????????? ??????????????????????? | | ??????????????+ ??????????????????????? | | ??????????????# ??????????????????????? | | ??????????????# #???####??????????????? | | ??????????????# # ?? #? ?????###### | | ??????????????# # ?? #? | | ??????????????# # ? #? | | ??????????????# # ? ## | | ??????????????# # """" ## | | ??????????????# # """"=## | | ?????????#????# # """"%## #??#?#### | | ???????### #### # """"!## #???????# | | ???????# # """" ## #???????# | | ???????# # """ ## #???????# | | ???????# !== # ## #???????# | | ???????# === # # +???????# | | ???????+ == %# ## #???????# | | ???????# @ ; c ## #???????# | | ???????# u # c##### ######### | | ???????# < c | | ???????# | | ???????+ | | ???????# g | | ???????# | | ???????###### ###########g########### | | ????????????# #????# #???? | | ????????????# H #????# #???? | | ????????????# #????# """"""""" #???? | | ????????????# < #????# """"""""" #???? | | ????????????# #????# """"""""" #???? | | ????????????# #????# """"""""" #???? | | ????????????####+####????# """"""""" #???? | | ?????????????????????????# """"""""" #???? | | ?????????????????????????# #???? | | ?????????????????????????# #???? | | ?????????????????????????# #???? | | ?????????????????????????# #???? | | ?????????????????????????##############???? | | ??????????????????????????????????????????? | | ??????????????????????????????????????????? | | ??????????????????????????????????????????? | | ??????????????????????????????????????????? | +----------------------------------------------------+ Best States ------------- Heat Dissipation 34 Energy Generation 23 Energy Capacity 250 Matter Stores 300 Matter Capacity 300 Sight Range 18 Terrain Scan Density 10 ECM Strength 1 Additional Mass Support 6 Evasion (%) 63 Item Schematics ----------------- None Robot Schematics ------------------ None Fabricated ------------ Nothing Repaired ---------- Nothing Alien Tech Used ----------------- None Achievements -------------- Slippery One Challenges ------------ None Game ------ Seed PoweredGuidedBooster Manual? 0 Play Time 00:46:11 Cumulative 14.7 hours Start 2025.05.30 @ 09:39:39 End 2025.06.26 @ 10:43:07 Sessions 3 Manual Loads 0 Difficulty Rogue Special Mode None Game No. 26 Rogue 26 Adventurer 0 Explorer 0 Win Type - Total 0 Types 0/0/0/0/0/0/0/0/0/0 Lore% 5 Gallery% 14 Achievement% 17 Wizard Run 0 Options --------- Layout 0 ASCII 0 Keyboard 0 Movement Numpad Keybinds 0 Fullscreen 2 Font 24/Smallcaps Map View 76x50 Zoom Use 15% Tactical HUD 1 Map Filters NONE Filters NONE Steam 1 RUN: ec803e8d-3cfc-4c94-846a-b70677dbe8ea